bitfinex/quotes_ETHUSD_20260228
["timestamp","ask_amount","ask_price","bid_price","bid_amount"]
[1772310326651,2.69603563,1966.9,1965.5,2.33429562]
[1772310326856,2.69603563,1966.9,1965.6,1.06235464]
[1772310327075,1.27103563,1966.9,1965.6,1.06235464]
[1772310327369,1.24560069,1966.9,1965.7,3.65019568]
[1772310327575,1.24560069,1966.9,1965.5,1.27194098]
[1772310327576,3.63279237,1966.3,1965.1,5.08871223]
[1772310327947,2.58784104,1966.0,1965.0,1.2722168]
[1772310328564,3.63279237,1966.0,1965.0,1.2722168]
[1772310328981,1.27168218,1965.9,1964.7,1.27245889]
[1772310329576,1.27168218,1965.9,1964.7,2.33481353]
[1772310329781,1.04495133,1965.7,1964.7,1.27245889]
[1772310330598,1.425,1965.7,1964.5,1.06235464]
[1772310330892,1.27187627,1965.6,1964.6,2.3348783]
[1772310331088,1.27187627,1965.6,1964.7,1.06235464]
[1772310331262,1.27184587,1965.7,1964.7,1.06235464]
[1772310332387,1.424,1965.8,1964.7,1.06235464]
[1772310332697,2.69561749,1966.0,1964.7,1.06235464]
[1772310332902,2.69561749,1966.0,1964.8,1.06235464]
[1772310333102,1.27159327,1966.1,1965.0,1.06235464]
[1772310334179,2.69559327,1966.1,1965.0,1.06235464]
[1772310334790,3.7405446,1966.1,1964.9,1.27232938]
[1772310335293,3.7405446,1966.1,1964.7,6.15167216]
[1772310335597,1.04495133,1966.0,1964.7,6.15167216]
[1772310336300,2.46895133,1966.0,1964.8,1.06235464]
[1772310336796,1.27159327,1966.1,1964.8,1.06235464]
[1772310337171,1.27159327,1966.1,1964.9,2.33468402]
[1772310337905,1.27159327,1966.1,1964.9,1.06235464]
[1772310337906,1.04495133,1966.0,1964.9,1.06235464]
[1772310338104,3.48158776,1965.9,1964.6,1.27249375]
[1772310338278,3.48158776,1965.9,1964.7,1.06235464]
[1772310339175,1.27174687,1965.8,1964.8,2.33474877]
[1772310339707,3.7396982,1965.8,1964.8,1.27239413]
[1772310339919,1.04495133,1965.7,1964.8,1.27239413]
[1772310340203,1.27174687,1965.8,1964.8,1.27239413]
[1772310340379,1.423,1965.7,1964.8,2.33474877]
[1772310341392,2.69481543,1965.7,1964.8,2.33474877]
[1772310341700,1.27181543,1965.7,1964.8,2.33474877]
[1772310341898,1.04495133,1965.6,1964.5,2.33494308]
[1772310342898,1.04495133,1965.4,1964.5,1.27258844]
[1772310343089,1.04495133,1965.4,1964.2,3.56589923]
[1772310343090,1.04495133,1965.4,1964.2,1.27274012]
[1772310343264,2.31702175,1965.3,1964.1,5.09122504]
[1772310343787,1.04495133,1965.2,1964.7,0.001]
[1772310343994,1.423,1965.1,1964.7,0.001]
[1772310344197,1.41981905,1965.1,1964.0,1.27390176]
[1772310344404,1.41981905,1965.0,1964.0,1.27390176]
[1772310344576,1.423,1964.9,1964.0,1.27390176]
[1772310344783,1.27207042,1965.3,1964.1,1.39042811]
[1772310345085,1.41981905,1965.1,1964.0,1.27390176]
[1772310345286,1.27226463,1965.0,1964.0,0.001]
[1772310345516,1.41981905,1964.9,1964.0,0.001]
[1772310345683,1.423,1964.8,1964.0,0.001]
[1772310345881,1.41981905,1964.9,1964.0,0.001]
[1772310346083,1.423,1964.8,1964.0,0.001]
[1772310347322,1.27245889,1964.7,1964.0,0.001]
[1772310348185,2.69539707,1964.8,1964.0,0.001]
[1772310349622,1.421,1964.7,1964.0,0.001]
[1772310350113,1.421,1964.8,1964.0,1.41304122]
[1772310350489,1.42,1964.8,1964.0,1.41304122]
[1772310351709,1.27245889,1964.7,1964.0,0.001]
[1772310351914,3.63039442,1964.6,1964.0,0.001]
[1772310352414,1.419,1964.5,1964.0,1.27389621]
[1772310352616,1.419,1964.5,1964.0,0.001]
[1772310353308,2.77291204,1964.5,1963.9,0.001]
[1772310353713,1.27265322,1964.4,1963.9,0.001]
[1772310354729,1.27263479,1964.5,1963.9,0.001]
[1772310354934,1.42,1964.4,1963.9,0.001]
[1772310355642,1.42,1964.4,1964.1,0.001]
[1772310355846,1.27268425,1964.4,1964.1,0.001]
[1772310356344,2.69262438,1964.5,1964.1,0.001]
[1772310356522,1.421,1964.5,1964.1,0.001]
[1772310358040,1.27265322,1964.4,1964.1,0.001]
[1772310360444,1.27265322,1964.4,1963.9,0.001]
[1772310360445,2.62656526,1964.4,1963.9,0.001]
[1772310360626,1.35391204,1964.3,1963.7,0.001]
[1772310360942,1.421,1964.2,1963.7,0.001]
[1772310361242,1.421,1964.2,1963.7,1.27410251]
[1772310361542,12.34985076,1965.0,1963.7,1.27410251]
[1772310361543,1.35391204,1965.3,1963.9,1.41204122]
[1772310361854,1.421,1965.3,1963.9,1.41204122]
[1772310362013,1.421,1965.3,1964.4,1.41204122]
[1772310362551,1.421,1965.3,1964.6,1.41204122]
[1772310362552,2.69307359,1965.3,1964.6,1.41204122]
[1772310362841,1.421,1965.3,1964.6,1.41204122]
[1772310363018,2.69307665,1965.3,1964.6,1.41204122]
[1772310363617,1.421,1965.3,1964.6,1.41204122]
[1772310363817,2.69307164,1965.3,1964.6,1.41204122]
[1772310364044,2.69307164,1965.3,1964.4,5.09035377]
[1772310364045,2.69307164,1965.3,1964.4,1.27264739]
[1772310364243,2.69307164,1965.3,1964.4,2.68468861]
[1772310364447,2.69307164,1965.3,1964.4,1.41204122]
[1772310364658,5.08828168,1965.7,1964.4,1.41204122]
[1772310364659,2.62546486,1966.2,1964.6,1.41204122]
[1772310364951,1.42,1965.9,1964.6,1.41204122]
[1772310365456,1.27142348,1966.3,1964.9,1.41204122]
[1772310365649,1.35391204,1966.2,1964.9,1.41204122]
[1772310366022,4.98430646,1966.1,1964.9,1.41204122]
[1772310366227,1.419,1966.0,1964.9,1.41204122]
[1772310366422,1.27168218,1965.9,1965.0,2.68430585]
[1772310366627,2.69066133,1966.0,1965.0,2.68430585]
[1772310367030,6.44024019,1966.1,1965.0,2.68430585]
[1772310367031,1.35391204,1966.1,1965.1,1.41204122]
[1772310367230,1.419,1966.0,1965.1,1.41204122]
[1772310367827,0.002,1965.8,1965.1,1.41204122]
[1772310368146,4.04407693,1966.7,1965.6,1.41204122]
[1772310368346,0.002,1965.9,1965.6,2.6838681]
[1772310368538,0.002,1966.1,1965.6,2.6838681]
[1772310368935,1.419,1966.5,1965.7,1.41204122]
[1772310369340,1.418,1966.6,1965.7,1.41204122]
[1772310370442,2.62520621,1966.5,1965.5,6.4995463]
[1772310370642,1.418,1966.4,1965.5,6.4995463]
[1772310371044,1.418,1966.6,1965.6,1.41204122]
[1772310371241,0.002,1966.8,1965.7,1.41204122]
[1772310371739,0.002,1966.8,1966.0,1.41204122]
[1772310372333,0.002,1966.8,1966.1,1.27155282]
[1772310372530,0.002,1966.8,1966.1,2.68359404]
[1772310372941,0.002,1966.8,1966.2,1.41204122]
[1772310373752,0.002,1966.8,1966.3,1.41204122]
[1772310373970,0.002,1966.8,1966.2,1.46]
[1772310374174,0.002,1966.8,1966.2,2.87204122]
[1772310374373,0.002,1966.8,1966.0,1.41204122]
[1772310375170,0.002,1967.0,1966.3,1.41204122]
[1772310376472,0.002,1967.0,1966.4,1.27135882]
[1772310376677,0.002,1967.0,1966.5,1.61421262]
[1772310378479,0.002,1967.0,1966.4,1.27135882]
[1772310378779,2.54645907,1967.6,1966.4,1.27135882]
[1772310378780,4.14150948,1968.0,1966.4,1.61421262]
[1772310378984,4.14150948,1968.0,1966.3,5.08543531]
[1772310378985,1.59505041,1967.9,1966.6,1.61421262]
[1772310379184,3.81679516,1968.0,1966.5,0.065536]
[1772310379185,2.86519407,1968.3,1966.8,1.61421262]
[1772310379559,1.59505041,1968.1,1966.5,1.61421262]
[1772310379761,1.59505041,1968.0,1966.5,1.61421262]
[1772310380582,0.002,1966.9,1966.7,1.61421262]
[1772310380779,2.86542448,1968.0,1966.7,1.61421262]
[1772310380987,0.002,1967.0,1966.7,1.61421262]
[1772310381165,0.002,1967.2,1966.8,1.61421262]
[1772310381364,2.86542448,1968.0,1966.8,1.61421262]
[1772310381569,1.59505041,1967.9,1966.8,1.61421262]
[1772310382091,1.59505041,1967.9,1966.6,1.27122953]
[1772310382092,1.59505041,1967.9,1966.7,1.61421262]
[1772310382261,3.00505041,1967.9,1966.7,1.61421262]
[1772310382662,1.27045431,1967.8,1966.8,2.88531288]
[1772310383195,2.86550472,1967.8,1966.8,2.88531288]
[1772310383497,1.59505041,1967.7,1966.8,1.27110026]
[1772310383993,3.00505041,1967.6,1966.3,2.8855929]
[1772310384163,1.59505041,1967.5,1966.3,2.8855929]
[1772310384496,1.59505041,1967.3,1966.1,1.27154818]
[1772310384668,2.86589221,1967.2,1966.1,2.8857608]
[1772310384873,4.27589221,1967.2,1966.1,2.8857608]
[1772310385094,1.59505041,1967.1,1965.8,2.88593075]
[1772310385394,1.59505041,1967.1,1965.7,1.27176176]
[1772310385703,1.59505041,1967.1,1965.8,1.61421262]
[1772310385704,1.41,1967.0,1965.8,1.61421262]
[1772310385991,3.00505041,1967.0,1965.8,1.61421262]
[1772310386201,1.59505041,1967.0,1965.8,1.61421262]
[1772310386385,1.2708418,1967.2,1965.8,1.61421262]
[1772310386585,1.2708418,1967.2,1966.0,1.61421262]
[1772310386791,1.2708418,1967.2,1966.1,1.61421262]
[1772310386998,2.86589221,1967.2,1966.1,1.61421262]
[1772310387497,1.2708418,1967.2,1966.1,1.61421262]
[1772310387993,2.86589221,1967.2,1966.1,1.61421262]
[1772310388375,1.59505041,1967.1,1966.1,1.61421262]
[1772310388576,1.27097102,1967.0,1966.3,1.61421262]
[1772310388896,2.8657363,1967.5,1966.3,1.61421262]
[1772310389431,2.86570695,1967.5,1966.3,1.61421262]
[1772310389932,1.27055173,1967.7,1966.3,1.61421262]
[1772310390302,1.27049395,1967.8,1966.3,1.61421262]
[1772310390830,1.27049395,1967.8,1966.5,1.61421262]
[1772310390831,2.86554436,1967.8,1966.5,1.61421262]
[1772310391524,1.59505041,1967.7,1966.5,1.61421262]
[1772310391734,1.59505041,1967.6,1966.4,1.27135882]
[1772310392101,1.59505041,1967.6,1966.2,1.61421262]
[1772310392309,1.59505041,1967.3,1966.0,2.73057503]
[1772310392507,1.59505041,1967.1,1966.4,0.001]
[1772310392730,2.86602143,1967.0,1966.4,0.001]
[1772310393307,1.59505041,1966.9,1965.6,5.08742695]
[1772310393532,1.59505041,1966.9,1966.1,0.001]
[1772310393734,3.00505041,1966.8,1966.1,0.001]
[1772310393922,1.59505041,1966.7,1966.1,0.001]
[1772310394823,1.27122953,1966.6,1966.1,0.001]
[1772310395236,1.41,1966.5,1966.1,0.001]
[1772310395433,3.00505041,1966.5,1966.1,0.001]
[1772310395736,1.41,1966.4,1966.1,0.001]
[1772310395941,3.00505041,1966.4,1966.1,0.001]
[1772310396111,3.00505041,1966.4,1965.3,2.8862819]
[1772310396315,3.00505041,1966.4,1965.3,1.61421262]
[1772310396316,1.59505041,1966.3,1965.3,1.61421262]
[1772310396959,1.27148814,1966.2,1965.3,1.61421262]
[1772310397170,1.27148814,1966.2,1965.3,2.88627886]
[1772310397331,2.68135882,1966.4,1965.4,1.61421262]
[1772310397672,1.41,1966.4,1965.4,1.61421262]
[1772310397839,1.59505041,1966.6,1965.4,1.61421262]
[1772310397840,2.57930464,1966.5,1965.4,1.61421262]
[1772310398240,1.27094002,1967.1,1965.4,1.61421262]
[1772310398917,5.08318857,1967.3,1965.8,1.61421262]
[1772310399122,5.08318857,1967.3,1966.0,1.61421262]
[1772310399758,5.08318857,1967.3,1965.9,1.454]
[1772310399759,5.08318857,1967.3,1966.2,1.61421262]
[1772310400130,1.27275717,1967.4,1966.2,1.61421262]
[1772310400721,2.68275717,1967.4,1966.2,1.61421262]
[1772310400916,0.002,1967.4,1966.4,1.61421262]
[1772310401769,0.002,1967.4,1966.6,1.61421262]
[1772310402424,1.59705041,1967.4,1966.1,3.87466824]
[1772310402620,1.59705041,1967.4,1966.2,1.61421262]
[1772310402832,1.409,1967.3,1966.2,1.61421262]
[1772310403047,1.2707772,1967.3,1966.3,1.27142348]
[1772310403222,1.59505041,1967.2,1966.0,1.27155301]
[1772310403649,1.59505041,1967.2,1966.1,1.61421262]
[1772310403847,1.2707772,1967.3,1966.2,1.61421262]
[1772310404546,0.002,1967.4,1966.2,1.61421262]
[1772310405053,0.002,1967.4,1966.4,1.77604143]
[1772310405421,0.002,1967.2,1966.4,1.77604143]
[1772310405823,1.71863659,1967.2,1966.3,0.001]
[1772310406067,1.71663659,1967.0,1966.3,0.001]
[1772310406428,1.71663659,1967.0,1966.0,0.001]
[1772310406744,1.71663659,1967.0,1966.0,1.27261371]
[1772310407122,2.98274351,1966.9,1966.0,0.001]
[1772310408060,1.71170788,1966.8,1966.0,0.001]
[1772310409025,2.67816489,1966.7,1966.0,0.001]
[1772310409228,4.38987277,1966.7,1966.0,0.001]
[1772310409432,1.27116489,1966.7,1966.0,0.001]
[1772310410065,1.71170788,1966.6,1966.0,0.001]
[1772310410228,1.71170788,1966.6,1965.3,3.02057466]
[1772310411138,2.98300205,1966.5,1965.3,3.02057466]
[1772310411659,1.71170788,1966.4,1965.3,1.74850424]
[1772310411859,1.71170788,1966.4,1965.1,1.27215598]
[1772310412049,1.71170788,1966.4,1965.1,3.02066022]
[1772310412453,1.71170788,1966.4,1965.2,1.74850424]
[1772310413262,2.98313136,1966.3,1965.3,1.27207042]
[1772310413584,1.407,1966.2,1965.3,1.27207042]
[1772310413768,1.27142348,1966.3,1965.4,1.74850424]
[1772310414800,2.67839323,1966.4,1965.4,1.74850424]
[1772310415303,2.67839323,1966.4,1965.5,1.27194098]
[1772310415642,2.67839323,1966.4,1965.1,3.02070412]
[1772310416078,2.67839323,1966.4,1965.2,1.74850424]
[1772310417277,2.67839323,1966.4,1965.4,1.74850424]
[1772310417776,2.67839323,1966.4,1965.6,0.001]
[1772310418878,4.39010111,1966.4,1965.6,0.001]
[1772310419103,1.71170788,1966.3,1965.3,0.001]
[1772310419315,2.67839323,1966.4,1965.3,0.001]
[1772310419316,1.71170788,1965.7,1965.3,0.001]
[1772310419474,0.987,1965.6,1965.3,0.001]
[1772310419674,2.69870788,1965.6,1964.4,4.46909664]
[1772310420090,2.69870788,1965.6,1964.4,3.02109664]
[1772310420297,1.71170788,1965.5,1964.4,3.02109664]
[1772310420599,1.71170788,1965.5,1964.3,1.27268107]
[1772310421304,1.71170788,1965.5,1964.6,3.56215865]
[1772310421305,1.27200569,1965.4,1964.6,3.56215865]
[1772310421511,2.67876489,1965.8,1964.9,3.56215865]
[1772310423004,7.54119848,1965.9,1965.0,1.74850424]
[1772310423005,1.27172852,1965.9,1965.0,1.74850424]
[1772310423377,1.27172852,1965.9,1965.1,1.27219988]
[1772310423578,2.67863116,1966.0,1965.2,1.74850424]
[1772310423772,1.407,1966.0,1965.3,1.74850424]
[1772310424484,1.407,1966.0,1965.1,1.27219988]
[1772310424485,2.67862483,1966.0,1965.1,1.27219988]
[1772310425084,1.71170788,1965.9,1964.8,1.27235376]
[1772310425410,5.08646998,1966.1,1965.0,3.02076887]
[1772310425711,3.11770788,1966.0,1965.0,3.02076887]
[1772310426277,5.08646998,1966.1,1965.0,3.02076887]
[1772310426278,6.79766047,1966.4,1965.1,1.74850424]
[1772310426891,1.71170788,1966.0,1964.9,1.27229357]
[1772310427096,1.407,1965.9,1964.9,1.27229357]
[1772310427723,1.27174687,1965.8,1964.9,1.27229357]
[1772310428228,1.406,1966.2,1965.3,1.74850424]
[1772310428594,1.406,1966.2,1965.0,3.56215865]
[1772310428595,3.11770788,1966.2,1965.0,3.56215865]
[1772310428790,3.11770788,1966.2,1964.8,3.02084917]
[1772310428791,1.71170788,1965.8,1964.8,3.02084917]
[1772310429017,1.71170788,1966.1,1964.9,1.74850424]
[1772310429221,1.406,1965.8,1964.9,1.74850424]
[1772310429526,1.27181156,1965.7,1964.9,1.74850424]
[1772310429717,2.98351944,1965.7,1964.7,1.27241191]
[1772310430115,2.98351944,1965.7,1964.7,3.02091615]
[1772310431242,1.407,1965.6,1964.7,3.02091615]
[1772310431621,1.27194098,1965.5,1964.8,0.001]
[1772310432216,1.27374763,1965.8,1965.1,1.81365441]
[1772310432420,1.27374764,1965.8,1965.0,1.74850424]
[1772310434064,0.002,1965.8,1965.1,1.27219988]
[1772310434248,1.71170788,1965.7,1964.8,1.27335997]
[1772310434549,3.11770788,1965.7,1964.8,1.27335997]
[1772310434851,1.406,1965.7,1964.8,3.02186421]
[1772310435234,0.002,1965.8,1964.8,3.02186421]
[1772310435420,1.406,1965.7,1964.8,3.02186421]
[1772310435619,1.406,1965.7,1964.9,0.5]
[1772310435821,0.002,1965.8,1965.0,1.74850424]
[1772310436016,0.002,1965.8,1965.1,1.27219988]
[1772310437720,1.91081348,1965.8,1964.9,1.77229802]
[1772310437925,1.27181156,1965.7,1964.9,1.77229802]
[1772310439358,1.27181156,1965.7,1964.9,1.77232344]
[1772310440262,1.27181156,1965.7,1964.9,0.5]
[1772310440452,3.18062504,1965.7,1964.9,1.77231726]
[1772310441255,3.18062504,1965.7,1964.9,0.5]
[1772310441458,1.90881348,1965.6,1964.7,0.001]
[1772310441837,1.404,1965.5,1964.7,0.001]
[1772310442160,1.27200569,1965.4,1964.7,0.001]
[1772310443429,3.18081917,1965.4,1964.7,0.001]
[1772310443741,1.90881348,1965.3,1964.7,0.001]
[1772310444063,1.81312763,1965.2,1964.7,0.001]
[1772310444235,1.27226463,1965.0,1964.1,1.27282827]
[1772310444429,1.27226463,1965.0,1964.2,1.8191883]
[1772310446249,1.27226463,1965.0,1964.3,1.27271801]
[1772310446646,1.27226463,1965.0,1964.3,1.27371801]
[1772310446974,1.27226463,1965.0,1964.3,0.001]
[1772310447193,2.67626463,1965.0,1964.3,0.001]
[1772310447685,4.58507811,1965.0,1964.3,0.001]
[1772310449143,1.405,1964.9,1964.3,0.001]
[1772310451205,1.90881348,1964.7,1964.2,0.001]
[1772310451349,1.90881348,1964.7,1964.0,0.001]
[1772310451545,1.406,1964.6,1964.0,0.001]
[1772310451785,3.31481348,1964.6,1964.0,0.001]
[1772310452489,1.90881348,1964.5,1964.0,0.001]
[1772310453067,1.27265322,1964.4,1964.0,0.001]
[1772310453267,3.1814667,1964.4,1963.9,0.001]
[1772310454064,1.90881348,1965.1,1963.9,1.8201883]
[1772310454276,1.407,1965.0,1963.9,1.8201883]
[1772310454799,3.31581348,1965.0,1963.9,1.8201883]
[1772310455182,1.27232938,1964.9,1964.0,1.27291242]
[1772310455384,1.27232938,1964.9,1964.0,3.09210072]
[1772310456189,1.90881348,1964.8,1963.9,1.27396739]
[1772310456398,1.406,1964.8,1964.0,1.8191883]
[1772310457486,1.90881348,1964.6,1963.9,0.001]
[1772310459102,3.72194111,1964.5,1963.9,0.001]
[1772310459477,3.1814667,1964.4,1963.9,0.001]
[1772310459674,3.72194111,1964.2,1963.7,0.001]
[1772310459899,1.27265322,1964.4,1963.7,1.8201883]
[1772310460208,2.67965322,1964.4,1963.7,1.8201883]
[1772310460497,2.67965322,1964.4,1963.7,0.001]
[1772310460703,1.90881348,1964.3,1963.7,0.001]
[1772310461200,1.90881348,1964.3,1963.4,3.09248574]
[1772310461201,1.90881348,1964.2,1963.3,0.001]
[1772310461401,1.27278281,1964.2,1963.8,0.001]
[1772310461795,4.99472392,1964.2,1963.8,0.001]
[1772310461991,1.90881348,1964.1,1963.8,0.001]
[1772310462196,1.90881348,1964.1,1963.3,0.001]
[1772310462393,1.90881348,1964.1,1963.5,0.001]
[1772310463171,1.81312763,1963.9,1963.3,0.001]
[1772310463371,1.27310689,1963.7,1963.3,0.001]
[1772310464504,3.27629596,1963.7,1963.3,0.001]
[1772310465195,3.27629596,1963.7,1963.2,0.001]
[1772310465502,3.8163167,1963.6,1963.0,0.001]
[1772310465807,1.27310689,1963.7,1962.4,2.00580829]
[1772310465984,1.412,1964.1,1962.6,2.00480829]
[1772310466188,0.825,1964.1,1962.6,2.38105809]
[1772310466503,2.73589759,1964.0,1962.6,2.00480829]
[1772310466686,1.414,1964.4,1962.8,1.88335861]
[1772310466889,0.002,1964.4,1963.0,1.88335861]
[1772310467102,2.47365346,1964.4,1963.0,1.88335861]
[1772310467300,0.002,1964.4,1963.0,1.88335861]
[1772310467509,0.002,1964.4,1963.2,1.88335861]
[1772310469597,0.002,1964.4,1963.4,1.88335861]
[1772310470115,0.002,1964.7,1963.6,1.88335861]
[1772310470441,5.08946449,1965.7,1963.8,1.88335861]
[1772310470442,0.825,1965.5,1963.8,1.88335861]
[1772310470584,2.09687627,1965.6,1964.2,1.88335861]
[1772310470781,2.09687627,1965.6,1964.4,1.88335861]
[1772310470982,4.59375598,1965.7,1964.4,1.88335861]
[1772310471189,0.002,1965.7,1964.4,1.88335861]
[1772310471392,1.27182224,1965.7,1965.0,1.88335861]
[1772310471593,0.002,1965.8,1965.1,1.27219988]
[1772310471795,0.002,1965.8,1964.8,1.27235867]
[1772310472338,0.002,1965.8,1964.3,1.88335861]
[1772310472339,1.91089759,1965.5,1964.3,1.88335861]
[1772310473588,1.27200569,1965.4,1964.4,1.27265322]
[1772310473888,5.08766217,1965.6,1964.5,1.88335861]
[1772310475008,9.53667101,1965.6,1964.5,1.88335861]
[1772310475392,1.91089759,1965.5,1964.5,1.88335861]
[1772310475723,1.27200569,1965.4,1964.5,3.15593488]
[1772310475923,1.27196956,1965.5,1964.6,1.88335861]
[1772310477086,1.27192607,1965.6,1964.6,1.88335861]
[1772310477288,2.68192607,1965.6,1964.6,1.88335861]
[1772310477695,2.68192607,1965.6,1964.5,1.27257627]
[1772310477696,1.91089759,1965.3,1964.3,1.88335861]
[1772310477899,1.91089759,1965.3,1964.1,7.26728314]
[1772310478431,1.91089759,1965.3,1964.2,1.88335861]
[1772310478787,1.41,1965.2,1964.2,1.88335861]
[1772310478984,3.32089759,1965.2,1964.2,1.88335861]
[1772310480116,1.91089759,1965.0,1964.1,2.70182055]
[1772310480322,1.91089759,1965.0,1964.1,2.70184381]
[1772310480520,1.91089759,1965.0,1964.1,1.27384381]
[1772310480691,1.91089759,1964.9,1964.1,0.001]
[1772310480895,2.53811125,1965.0,1964.0,0.001]
[1772310480896,1.91089759,1964.6,1964.0,0.001]
[1772310481131,1.91089759,1964.6,1963.8,0.001]
[1772310481132,1.91089759,1964.4,1963.8,0.001]
[1772310481417,3.32089759,1964.3,1963.3,1.88335861]
[1772310482020,3.1836804,1964.2,1963.0,2.70153571]
[1772310482320,1.91089759,1964.1,1963.0,4.58491314]
[1772310482617,1.41,1964.0,1963.0,4.58491314]
[1772310483033,1.41,1964.0,1963.1,1.88335861]
[1772310483634,3.32089759,1964.0,1962.8,1.27364432]
[1772310483932,1.409,1963.9,1962.9,1.88335861]
[1772310484134,1.27304206,1963.8,1963.0,1.27356087]
[1772310484336,1.27300683,1963.9,1963.1,1.88335861]
[1772310484707,2.68192438,1964.0,1963.1,1.88335861]
[1772310485332,7.62893885,1964.4,1963.1,1.88335861]
[1772310485333,1.27271801,1964.3,1963.1,1.88335861]
[1772310485722,1.27270183,1964.4,1963.1,1.88335861]
[1772310485930,1.27270183,1964.4,1963.3,1.88335861]
[1772310486114,1.27270183,1964.4,1963.5,1.88335861]
[1772310486435,1.91089759,1964.3,1963.2,2.70042953]
[1772310486668,1.91089759,1964.3,1963.2,4.58478814]
[1772310486844,1.91089759,1964.3,1963.2,1.88435861]
[1772310486845,0.002,1963.9,1963.2,1.88435861]
[1772310487052,0.002,1963.9,1963.2,3.15777995]
[1772310487855,0.002,1963.9,1963.2,1.88435861]
[1772310488342,0.002,1963.9,1963.2,0.001]
[1772310488717,0.002,1963.9,1963.2,1.27442994]
[1772310489022,0.002,1963.9,1963.2,0.001]
[1772310489211,0.002,1963.9,1963.2,3.15778115]
[1772310489415,0.002,1963.9,1963.2,1.27442254]
[1772310490155,0.002,1963.9,1963.3,1.88335861]
[1772310491842,0.002,1964.2,1963.4,1.88335861]
[1772310492140,0.002,1964.2,1963.5,3.15659517]
[1772310493048,0.002,1964.2,1963.6,1.88335861]
[1772310493623,1.27239413,1964.8,1963.8,1.88335861]
[1772310494171,5.08948188,1964.9,1963.9,3.15633584]
[1772310495018,7.00037947,1964.9,1963.9,1.88335861]
[1772310495221,1.91089759,1964.8,1963.8,1.27304183]
[1772310495442,1.406,1964.7,1963.8,1.27304183]
[1772310496266,1.406,1964.7,1963.7,5.09217547]
[1772310496267,1.27252366,1964.6,1963.7,5.09217547]
[1772310496759,3.17457509,1964.6,1963.7,1.27310689]
[1772310496954,3.17457509,1964.6,1963.6,3.15649354]
[1772310497518,1.90205143,1964.5,1963.6,1.88335861]
[1772310498251,3.17470465,1964.4,1963.4,5.09297807]
[1772310498462,5.0906129,1964.5,1963.4,5.09297807]
[1772310498463,1.90205143,1964.8,1963.6,1.93080867]
[1772310498627,1.406,1964.8,1963.6,1.93080867]
[1772310498825,1.90205143,1964.7,1963.6,1.93080867]
[1772310499728,0.002,1964.4,1963.6,1.93080867]
[1772310500252,0.002,1964.4,1963.6,1.27317172]
[1772310500558,0.002,1964.4,1963.7,1.93080867]
[1772310501166,0.002,1964.4,1963.6,1.27317172]
[1772310501723,0.002,1964.4,1963.5,1.27319434]
[1772310501931,0.002,1964.4,1963.4,3.20407581]
[1772310502150,1.90405143,1964.4,1963.4,3.20407581]
[1772310502446,1.90405143,1964.4,1963.3,5.09325672]
[1772310502447,1.90205143,1964.2,1963.3,3.20417494]
[1772310502847,1.90205143,1964.2,1963.2,1.27440489]
[1772310503956,7.63537605,1964.4,1963.3,1.93080867]
[1772310503957,1.27467702,1964.4,1963.3,1.93080867]
[1772310504454,0.002,1964.4,1963.6,1.93080867]
[1772310506430,0.002,1964.4,1963.7,3.20391556]
[1772310506757,0.002,1964.4,1963.8,1.93080867]
[1772310508954,0.002,1964.4,1963.9,1.27297723]
[1772310509767,0.002,1964.4,1963.6,2.69716454]
[1772310510356,0.002,1964.4,1963.6,1.424]
[1772310510554,1.90405143,1964.4,1963.6,2.69716728]
[1772310510950,1.90405143,1964.4,1963.5,3.20400174]
[1772310511260,1.90405143,1964.4,1963.4,5.0930206]
[1772310511261,3.17476944,1964.3,1963.3,1.27336627]
[1772310511432,3.30405143,1964.2,1963.3,1.27336627]
[1772310511636,3.30405143,1964.2,1963.2,8.45036497]
[1772310511637,1.90205143,1964.1,1963.2,4.63020063]
[1772310511857,1.90205143,1964.1,1963.7,0.001]
[1772310513442,1.402,1964.2,1963.7,0.001]
[1772310514172,1.402,1964.2,1963.5,0.001]
[1772310514173,1.90205143,1964.1,1963.5,0.001]
[1772310514577,1.403,1964.0,1963.5,0.001]
[1772310514768,3.30505143,1964.0,1963.5,0.001]
[1772310515643,1.27297723,1963.9,1963.5,0.001]
[1772310516142,3.17502866,1963.9,1963.5,0.001]
[1772310516716,1.90205143,1963.8,1963.5,0.001]
[1772310517041,1.90205143,1963.7,1963.2,0.001]
[1772310517242,1.405,1963.6,1963.2,0.001]
[1772310517651,1.27323656,1963.5,1963.2,0.001]
[1772310518169,1.90205143,1963.4,1963.0,0.001]
[1772310518469,1.407,1963.3,1963.0,0.001]
[1772310518674,1.407,1963.7,1963.0,1.93180867]
[1772310519241,1.90205143,1963.4,1962.4,1.93180867]
[1772310519441,1.90205143,1963.4,1962.4,0.001]
[1772310519752,1.90205143,1963.2,1962.4,0.001]
[1772310519959,1.27336627,1963.3,1962.4,0.001]
[1772310519960,3.30905143,1963.1,1962.4,0.001]
[1772310520140,1.90205143,1963.0,1962.4,0.001]
[1772310520341,3.30905143,1963.0,1962.4,0.001]
[1772310521894,1.407,1963.0,1962.4,1.93180867]
[1772310522284,1.407,1963.1,1962.4,1.93180867]
[1772310522996,1.90205143,1963.0,1962.4,0.001]
[1772310524101,1.27362575,1962.9,1962.4,0.001]
[1772310524393,4.36314071,1963.3,1962.5,0.001]
[1772310524605,2.67943113,1963.2,1962.5,1.95713407]
[1772310524963,2.68023656,1963.5,1962.5,1.95713407]
[1772310525565,1.27323656,1963.5,1962.5,1.95713407]
[1772310525770,1.407,1963.4,1962.5,1.95713407]
[1772310525990,2.68035422,1963.4,1962.7,1.95613407]
[1772310526381,1.407,1963.4,1962.7,1.95613407]
[1772310526714,2.68030798,1963.4,1962.7,1.95613407]
[1772310527892,2.68030798,1963.4,1962.5,0.001]
[1772310528288,1.9576462,1963.3,1962.5,0.001]
[1772310530296,3.23107733,1963.2,1962.5,0.001]
[1772310530806,1.9576462,1963.1,1962.5,0.001]
[1772310531009,1.407,1963.0,1962.5,0.001]
[1772310531312,3.3646462,1963.0,1962.5,0.001]
[1772310532196,1.9576462,1963.4,1962.5,1.89347297]
[1772310532382,1.9576462,1963.2,1962.5,0.001]
[1772310532587,1.407,1963.1,1962.5,0.001]
[1772310533413,3.3646462,1963.1,1962.5,0.001]